bitfinex/quotes_SOLUSD_20230110
["timestamp","ask_amount","ask_price","bid_price","bid_amount"]
[1673357365346,43.57,16.04,16.026,46.81]
[1673357365660,20.0,16.039,16.026,46.81]
[1673357365848,20.0,16.038,16.026,46.81]
[1673357366058,133.0144,16.038,16.025,66.82]
[1673357367236,133.0144,16.038,16.025,20.0]
[1673357367552,133.0144,16.038,16.024,66.82]
[1673357374377,113.0144,16.038,16.024,66.82]
[1673357375953,20.0,16.037,16.024,66.82]
[1673357377015,20.0,16.037,16.024,20.0]
[1673357378485,113.0144,16.038,16.024,20.0]
[1673357379324,20.0,16.037,16.024,20.0]
[1673357380467,113.0144,16.038,16.024,20.0]
[1673357380674,20.0,16.037,16.024,20.0]
[1673357380905,113.0144,16.038,16.024,20.0]
[1673357381114,113.0144,16.038,16.026,20.0]
[1673357382272,113.0144,16.038,16.025,46.82]
[1673357384877,113.0144,16.038,16.026,20.0]
[1673357387944,113.0144,16.038,16.024,66.82]
[1673357388761,20.0,16.037,16.024,66.82]
[1673357390670,113.0144,16.038,16.024,46.82]
[1673357390870,113.0144,16.038,16.025,21.92]
[1673357391193,113.0144,16.038,16.026,46.81]
[1673357391402,113.0144,16.038,16.024,46.82]
[1673357391596,113.0144,16.038,16.025,20.0]
[1673357392981,20.0,16.037,16.02,81.3944]
[1673357393171,46.78,16.036,16.02,81.3944]
[1673357393389,66.78,16.037,16.02,81.3944]
[1673357393607,46.78,16.037,16.021,66.83]
[1673357394771,20.0,16.036,16.021,66.83]
[1673357396747,20.0,16.037,16.021,66.83]
[1673357401287,20.0,16.037,16.021,46.83]
[1673357401499,17.0,16.036,16.02,81.3944]
[1673357401816,20.0,16.035,16.021,46.83]
[1673357402425,63.78,16.036,16.021,46.83]
[1673357402636,46.78,16.036,16.022,20.0]
[1673357402845,274.8336,16.038,16.023,46.82]
[1673357403077,228.0536,16.038,16.023,46.82]
[1673357403287,228.0536,16.038,16.024,20.0]
[1673357403500,228.0536,16.038,16.025,46.82]
[1673357404860,20.0,16.037,16.023,46.82]
[1673357406865,17.0,16.036,16.023,46.82]
[1673357407070,17.0,16.036,16.022,66.83]
[1673357408117,274.8336,16.038,16.022,66.83]
[1673357408327,228.0536,16.038,16.022,66.83]
[1673357408854,20.0,16.037,16.022,66.83]
[1673357409700,228.0536,16.038,16.022,66.83]
[1673357410859,20.0,16.037,16.022,66.83]
[1673357411168,228.0536,16.038,16.022,66.83]
[1673357411694,228.0536,16.038,16.023,1.92]
[1673357411893,228.0536,16.038,16.022,66.83]
[1673357411894,228.0536,16.038,16.025,20.0]
[1673357412109,228.0536,16.038,16.026,46.81]
[1673357412532,228.0536,16.038,16.027,20.0]
[1673357413251,228.0536,16.038,16.026,46.81]
[1673357414846,228.0536,16.038,16.023,46.82]
[1673357415052,228.0536,16.038,16.024,20.0]
[1673357415264,17.0,16.037,16.023,46.82]
[1673357415477,17.0,16.037,16.021,46.83]
[1673357415478,20.0,16.036,16.021,46.83]
[1673357415786,20.0,16.034,16.02,128.2244]
[1673357416199,17.0,16.033,16.02,81.3944]
[1673357417385,17.0,16.033,16.018,46.84]
[1673357417571,17.0,16.033,16.019,20.0]
[1673357418092,17.0,16.033,16.02,46.83]
[1673357418516,17.0,16.033,16.019,20.0]
[1673357418715,26.57,16.03,16.017,46.84]
[1673357419047,66.8,16.029,16.016,20.0]
[1673357419258,185.9954,16.029,16.016,20.0]
[1673357420207,185.9954,16.029,16.014,66.85]
[1673357420424,17.0,16.028,16.014,66.85]
[1673357420941,185.9954,16.029,16.014,66.85]
[1673357421369,37.0,16.028,16.014,66.85]
[1673357421581,37.0,16.028,16.014,20.0]
[1673357422106,37.0,16.028,16.013,111.6552]
[1673357422319,46.81,16.027,16.013,111.6552]
[1673357422536,17.0,16.026,16.013,111.6552]
[1673357422735,17.0,16.026,16.011,80.517]
[1673357423165,17.0,16.026,16.012,20.0]
[1673357423366,20.0,16.025,16.011,20.0]
[1673357423576,66.82,16.025,16.011,20.0]
[1673357424518,66.82,16.025,16.009,66.86]
[1673357424730,183.4611,16.025,16.01,20.0]
[1673357425151,183.4611,16.025,16.011,20.0]
[1673357425152,163.4611,16.025,16.011,20.0]
[1673357425369,116.6411,16.025,16.011,20.0]
[1673357425559,116.6411,16.025,16.011,66.86]
[1673357425989,116.6411,16.025,16.011,180.5424]
[1673357426529,83.82,16.024,16.011,113.6824]
[1673357428528,20.0,16.023,16.011,113.6824]
[1673357428737,46.83,16.022,16.011,113.6824]
[1673357429578,46.82,16.023,16.011,113.6824]
[1673357431664,26.57,16.02,16.011,113.6824]
[1673357435897,26.57,16.02,16.012,20.0]
[1673357436113,26.57,16.02,16.011,113.6824]
[1673357438743,26.57,16.02,16.009,46.86]
[1673357438957,40.0,16.019,16.004,46.88]
[1673357439262,40.0,16.019,16.005,20.0]
[1673357439460,40.0,16.019,16.006,46.87]
[1673357439917,17.0,16.018,16.004,46.88]
[1673357440086,26.57,16.01,16.001,114.9208]
[1673357440923,26.57,16.01,15.996,46.9]
[1673357440924,20.0,16.009,15.996,46.9]
[1673357441344,20.0,16.008,15.996,46.9]
[1673357441569,20.0,16.008,15.994,31.91]
[1673357443996,20.0,16.008,15.993,66.91]
[1673357444201,20.0,16.008,15.993,46.91]
[1673357444520,66.87,16.008,15.992,166.2233]
[1673357444928,20.0,16.006,15.992,166.2233]
[1673357445337,20.0,16.006,15.992,46.91]
[1673357445552,20.0,16.004,15.991,119.5282]
[1673357445967,17.0,16.003,15.991,119.5282]
[1673357446812,20.0,16.002,15.991,119.5282]
[1673357450218,20.0,16.005,15.991,119.5282]
[1673357450424,20.0,16.006,15.993,20.0]
[1673357451054,20.0,16.006,15.994,46.91]
[1673357452959,20.0,16.006,15.993,46.91]
[1673357453147,20.0,16.006,15.993,36.91]
[1673357455576,40.0,16.009,15.993,36.91]
[1673357455804,40.0,16.009,15.994,20.0]
[1673357455986,40.0,16.009,15.995,46.9]
[1673357456194,20.0,16.008,15.995,46.9]
[1673357456635,20.0,16.008,15.994,46.91]
[1673357457470,20.0,16.008,15.993,46.91]
[1673357459273,20.0,16.006,15.992,161.2291]
[1673357459594,17.0,16.005,15.991,119.5282]
[1673357459777,20.0,16.003,15.991,119.5282]
[1673357462112,20.0,16.004,15.991,119.5282]
[1673357462723,17.0,16.003,15.991,119.5282]
[1673357465142,26.57,16.0,15.99,46.92]
[1673357466406,20.0,15.998,15.989,5.6687]
[1673357466828,17.0,15.997,15.989,5.6687]
[1673357467364,20.0,15.996,15.989,5.6687]
[1673357472314,20.0,15.998,15.989,5.6687]
[1673357472820,20.0,16.009,15.99,66.92]
[1673357473024,20.0,16.008,15.991,20.96]
[1673357473234,20.0,16.008,15.992,47.87]
[1673357473571,20.0,16.008,15.993,20.96]
[1673357473781,10.0,16.008,15.994,47.87]
[1673357473987,10.0,16.008,15.995,20.0]
[1673357474196,10.0,16.008,15.996,46.9]
[1673357475132,20.0,16.009,15.997,20.0]
[1673357475342,20.0,16.009,15.998,46.9]
[1673357475556,20.0,16.009,15.999,20.0]
[1673357476194,46.66,16.01,15.998,66.9]
[1673357477034,26.66,16.01,15.999,20.0]
[1673357479035,115.6303,16.011,15.999,20.0]
[1673357479559,20.0,16.01,15.999,20.0]
[1673357480193,115.6303,16.011,15.998,66.9]
[1673357480591,115.6303,16.011,15.999,20.0]
[1673357480824,20.0,16.01,15.999,20.0]
[1673357481353,15.0,16.01,15.999,20.0]
[1673357481664,115.6303,16.011,15.999,20.0]
[1673357484400,142.41,16.02,16.001,20.0]
[1673357484596,20.0,16.019,16.002,48.8]
[1673357484809,20.0,16.019,16.003,20.0]
[1673357485013,20.0,16.019,16.004,48.8]
[1673357485224,20.0,16.019,16.005,20.0]
[1673357485435,20.0,16.019,16.007,20.0]
[1673357486908,46.82,16.024,16.007,20.0]
[1673357487113,117.9092,16.025,16.011,20.0]
[1673357487358,117.9092,16.025,16.012,46.85]
[1673357487532,117.9092,16.025,16.011,20.0]
[1673357487533,20.0,16.024,16.011,66.86]
[1673357487953,117.9092,16.025,16.011,66.86]
[1673357490812,46.81,16.028,16.013,20.0]
[1673357491021,46.8,16.029,16.013,66.85]
[1673357491343,46.79,16.033,16.014,39.8630853]
[1673357491537,46.79,16.033,16.015,46.85]
[1673357491857,46.79,16.033,16.017,20.0]
[1673357492070,46.79,16.033,16.018,46.84]
[1673357492287,46.79,16.033,16.018,20.0]
[1673357492908,46.79,16.033,16.019,20.0]
[1673357493119,46.79,16.033,16.02,20.0]
[1673357495347,108.9478,16.034,16.02,20.0]
[1673357495555,46.79,16.033,16.02,20.0]
[1673357496374,20.0,16.032,16.02,20.0]
[1673357496588,20.0,16.032,16.018,20.0]
[1673357497458,66.79,16.033,16.018,20.0]
[1673357497662,46.79,16.033,16.019,20.0]
[1673357497872,108.9478,16.034,16.02,21.92]
[1673357498273,108.9478,16.034,16.02,20.0]
[1673357498580,20.0,16.032,16.02,20.0]
[1673357498794,108.9478,16.034,16.02,20.0]
[1673357499006,20.0,16.033,16.02,20.0]
[1673357499443,20.0,16.033,16.01,88.49388338]
[1673357499444,26.56,16.03,16.01,88.49388338]
[1673357499646,20.0,16.028,16.011,251.8589]
[1673357500062,66.8,16.029,16.011,251.8589]
[1673357500289,66.8,16.029,16.014,20.0]
[1673357500481,178.3179,16.029,16.014,20.0]
[1673357503551,20.0,16.028,16.014,20.0]
[1673357503974,178.3179,16.029,16.014,20.0]
[1673357505318,178.3179,16.029,16.012,20.0]
[1673357505530,17.0,16.028,16.012,20.0]
[1673357505742,46.81,16.027,16.011,231.8589]
[1673357505946,85.36825296,16.027,16.011,231.8589]
[1673357506579,20.0,16.026,16.011,231.8589]
[1673357506790,46.82,16.025,16.011,231.8589]
[1673357507329,46.82,16.025,16.008,46.87]
[1673357507522,20.0,16.019,16.004,66.88]
[1673357507737,46.84,16.018,16.003,175.9109]
[1673357509010,46.84,16.018,16.003,129.0309]
[1673357511844,46.84,16.018,16.003,109.0309]
[1673357512058,17.0,16.017,16.003,109.0309]
[1673357512266,46.84,16.016,15.999,115.433]
[1673357512472,17.0,16.015,16.0,66.89]
[1673357512679,20.0,16.014,16.0,66.89]
[1673357512911,46.84,16.017,16.0,66.89]
[1673357513108,20.0,16.016,16.001,20.0]
[1673357513320,20.0,16.016,16.002,46.88]
[1673357513644,20.0,16.016,16.001,66.89]
[1673357514381,46.84,16.017,16.001,66.89]
[1673357514585,132.7827,16.019,16.001,66.89]
[1673357515348,132.7827,16.019,16.002,1.92]
[1673357515563,132.7827,16.019,16.003,46.88]
[1673357515754,179.6127,16.019,16.003,20.0]
[1673357515976,179.6127,16.019,16.004,46.88]
[1673357516170,132.7827,16.019,16.004,46.88]
[1673357517242,132.7827,16.019,16.002,46.88]
[1673357517558,132.7827,16.019,16.003,20.0]
[1673357517750,132.7827,16.019,16.004,46.88]
[1673357518172,132.7827,16.019,16.002,46.88]
[1673357519457,132.7827,16.019,16.001,46.89]
[1673357519973,132.7827,16.019,16.002,1.92]
[1673357520167,132.7827,16.019,16.003,46.88]
[1673357520817,132.7827,16.019,16.001,46.89]
[1673357522835,46.84,16.018,16.001,46.89]
[1673357523050,20.0,16.017,16.001,46.89]
[1673357523567,20.0,16.017,16.002,20.0]
[1673357523773,46.84,16.018,16.003,46.88]
[1673357523984,179.6127,16.019,16.003,46.88]
[1673357526184,159.6127,16.019,16.004,0.96]
[1673357526394,115.056,16.02,16.005,46.87]
[1673357526722,115.056,16.02,16.006,20.96]
[1673357526932,115.056,16.02,16.008,20.0]
[1673357527130,115.056,16.02,16.009,66.86]
[1673357527345,115.056,16.02,16.01,20.0]
[1673357527873,115.056,16.02,16.009,66.86]
[1673357529011,115.056,16.02,16.009,20.0]
[1673357529223,115.056,16.02,16.008,20.0]
[1673357529431,115.056,16.02,16.009,66.86]
[1673357529883,115.056,16.02,16.009,20.0]
[1673357530064,115.056,16.02,16.008,40.0]
[1673357530396,115.056,16.02,16.009,46.86]
[1673357530610,115.056,16.02,16.01,20.0]
[1673357532179,115.056,16.02,16.009,20.0]
[1673357532378,115.056,16.02,16.008,20.0]
[1673357533342,115.056,16.02,16.008,40.0]
[1673357533887,115.056,16.02,16.008,20.0]
[1673357534077,20.0,16.019,16.008,20.0]
[1673357534273,20.0,16.019,16.007,20.0]
[1673357534700,20.0,16.019,16.005,46.87]
[1673357534928,20.0,16.019,16.004,66.88]
[1673357535133,20.0,16.017,16.004,20.0]
[1673357535573,46.84,16.018,16.004,20.0]
[1673357538081,46.83,16.022,16.004,20.0]
[1673357538283,111.5179,16.029,16.004,20.0]
[1673357538284,159.874,16.027,16.006,20.0]
[1673357538488,178.43225296,16.027,16.007,179.1438]
[1673357538825,20.0,16.026,16.008,20.0]
[1673357539146,20.0,16.024,16.009,46.86]
[1673357539342,20.0,16.024,16.01,20.0]
[1673357539548,38.55825296,16.024,16.01,20.0]
[1673357539976,26.56,16.02,16.005,46.87]
[1673357540184,86.83,16.019,16.002,117.3932]
[1673357540395,17.0,16.018,16.002,117.3932]
[1673357540602,66.84,16.017,16.002,117.3932]
[1673357541032,85.39825296,16.017,16.002,117.3932]
[1673357541267,85.39825296,16.017,16.003,20.0]
[1673357542625,85.39825296,16.017,16.002,117.3932]
[1673357543769,85.39825296,16.017,16.003,20.0]
[1673357544605,85.39825296,16.017,16.002,117.3932]
[1673357545039,65.39825296,16.017,16.002,117.3932]
[1673357545245,65.39825296,16.017,16.003,20.0]
[1673357547220,20.0,16.016,16.002,117.3932]
[1673357555002,20.0,16.016,16.003,20.0]
[1673357555220,20.0,16.016,16.002,117.3932]
[1673357556902,20.0,16.016,16.003,17.0]
[1673357559102,20.0,16.016,16.003,63.88]
[1673357563519,20.0,16.016,16.003,46.88]
[1673357563734,17.0,16.015,16.002,117.3932]
[1673357564874,17.0,16.015,16.003,17.0]
[1673357569606,17.0,16.015,16.002,117.3932]
[1673357569821,17.0,16.015,16.0,46.89]
[1673357569822,26.57,16.01,16.0,46.89]
[1673357570034,26.57,16.01,15.996,46.9]
[1673357570035,20.0,16.009,15.996,46.9]
[1673357570352,20.0,16.009,15.995,110.4158]
[1673357570353,20.0,16.008,15.995,110.4158]
[1673357571318,66.87,16.008,15.995,110.4158]
[1673357571702,66.87,16.008,15.992,116.5708]
[1673357571915,17.0,16.007,15.992,116.5708]
[1673357572543,46.87,16.006,15.99,110.4158]
[1673357572752,20.0,15.999,15.989,5.6687]
[1673357573389,17.0,15.998,15.989,5.6687]
[1673357573815,20.0,15.997,15.989,5.6687]
[1673357575100,20.0,15.999,15.989,5.6687]
[1673357578966,17.0,15.998,15.989,5.6687]
[1673357579389,20.0,15.997,15.989,5.6687]
[1673357582030,17.0,15.996,15.98,46.95]
[1673357582242,134.5792,15.996,15.98,15.0]
[1673357582439,20.0,15.995,15.98,15.0]
[1673357582650,20.0,15.995,15.981,46.95]
[1673357582651,20.0,15.993,15.981,46.95]
[1673357583075,20.0,15.993,15.98,15.0]
[1673357583292,20.0,15.993,15.977,46.96]
[1673357583293,17.0,15.992,15.977,46.96]
[1673357583601,20.0,15.991,15.976,114.347]
[1673357583820,20.0,15.991,15.977,46.96]
[1673357584015,20.0,15.991,15.975,46.96]
[1673357584338,20.0,15.991,15.976,20.0]
[1673357584549,20.0,15.991,15.977,46.46]
[1673357584763,20.0,15.991,15.978,20.0]
[1673357584950,20.0,15.989,15.977,46.46]
[1673357585796,20.0,15.991,15.977,46.46]
[1673357586216,20.0,15.992,15.978,20.0]
[1673357586434,20.0,15.992,15.979,66.95]
[1673357586859,20.0,15.992,15.979,20.0]
[1673357587062,20.0,15.992,15.978,20.0]
[1673357588337,20.0,15.992,15.979,17.0]
[1673357588650,20.0,15.992,15.98,20.0]
[1673357588860,20.0,15.992,15.981,17.0]
[1673357589910,20.0,15.992,15.977,46.96]
[1673357590105,26.7,15.99,15.976,114.347]
[1673357590314,20.0,15.989,15.976,114.347]
[1673357590526,20.0,15.988,15.976,114.347]
[1673357596004,20.0,15.988,15.977,46.96]
[1673357596637,20.0,15.988,15.973,46.97]
[1673357596853,20.0,15.988,15.971,46.97]
[1673357597060,82.48825296,15.987,15.97,46.98]
[1673357597258,82.48825296,15.987,15.969,46.98]
[1673357597465,26.7,15.98,15.966,46.99]
[1673357597684,40.0,15.979,15.966,46.99]
[1673357597887,40.0,15.979,15.963,47.0]
[1673357598420,17.0,15.978,15.962,47.0]
[1673357598612,20.0,15.977,15.962,47.0]
[1673357599033,40.0,15.979,15.962,47.0]
[1673357599246,20.0,15.979,15.962,47.0]
[1673357599468,20.0,15.979,15.961,111.9248]
[1673357599469,20.0,15.979,15.967,20.0]
[1673357599677,66.95,15.981,15.967,20.0]
[1673357600097,20.0,15.98,15.966,46.99]
[1673357600309,20.0,15.979,15.966,46.99]
[1673357601457,20.0,15.979,15.967,20.0]
[1673357601665,20.0,15.981,15.968,46.98]
[1673357602419,46.94,15.983,15.964,20.0]
[1673357602728,113.0634,15.984,15.967,20.0]
[1673357602946,113.0634,15.984,15.968,184.8941]
[1673357603155,113.0634,15.984,15.969,20.96]
[1673357603365,113.0634,15.984,15.971,20.0]
[1673357603552,46.92,15.988,15.972,46.97]
[1673357603972,156.7202,15.989,15.973,17.0]
[1673357604204,20.0,15.988,15.974,66.97]
[1673357604417,20.0,15.988,15.975,17.0]
[1673357604827,20.0,15.988,15.972,46.97]
[1673357605470,20.0,15.988,15.973,20.0]
[1673357605676,156.7202,15.989,15.974,46.97]
[1673357605887,109.8002,15.989,15.975,20.0]
[1673357606530,109.8002,15.989,15.974,46.97]
[1673357606733,20.0,15.988,15.974,46.97]
[1673357607148,20.0,15.988,15.972,46.97]
[1673357608322,20.0,15.986,15.971,46.97]
[1673357608924,20.0,15.986,15.97,46.98]
[1673357609135,38.55825296,15.986,15.97,46.98]
[1673357609346,38.55825296,15.986,15.968,109.4847]
[1673357609347,20.0,15.984,15.968,109.4847]
[1673357609562,83.94,15.983,15.966,46.99]
[1673357609782,211.95755296,15.983,15.966,46.99]
[1673357609994,20.0,15.982,15.966,46.99]
[1673357610208,66.95,15.981,15.966,46.99]
[1673357610394,20.0,15.979,15.966,46.99]
[1673357611676,20.0,15.979,15.965,5.6687597]
[1673357611874,46.58,15.98,15.965,5.6687597]
[1673357612089,109.4593,15.983,15.966,66.99]
[1673357612298,109.4593,15.983,15.967,20.0]
[1673357612510,109.4593,15.983,15.968,66.98]
[1673357612714,109.4593,15.983,15.969,20.0]
[1673357612923,109.4593,15.983,15.97,63.98]
[1673357613466,109.4593,15.983,15.971,20.0]
[1673357614622,109.4593,15.983,15.972,17.0]
[1673357615148,109.4593,15.983,15.969,66.98]
[1673357615471,109.4593,15.983,15.97,37.0]
[1673357616723,109.4593,15.983,15.971,20.0]
[1673357616912,109.4593,15.983,15.972,17.0]
[1673357617126,109.4593,15.983,15.97,20.0]
[1673357619973,20.0,15.982,15.97,20.0]
[1673357620187,109.4593,15.983,15.97,20.0]
[1673357620934,109.4593,15.983,15.971,17.0]
[1673357622091,109.4593,15.983,15.972,20.0]
[1673357622606,109.4593,15.983,15.973,17.0]
[1673357622820,156.3993,15.983,15.973,17.0]
[1673357623013,109.4593,15.983,15.973,17.0]
[1673357623225,131.3862,15.992,15.974,46.97]
[1673357623437,111.3862,15.992,15.975,17.96]
[1673357623643,111.3862,15.992,15.976,67.92]
[1673357623853,111.3862,15.992,15.977,0.96]
[1673357624055,111.3862,15.992,15.978,46.95]
[1673357624274,111.3862,15.992,15.979,20.0]
[1673357624486,111.3862,15.992,15.98,20.0]
[1673357626474,111.3862,15.992,15.978,46.95]
[1673357626687,46.58,15.99,15.971,66.97]
[1673357627008,20.0,15.989,15.971,66.97]
[1673357627217,20.0,15.988,15.972,20.0]
[1673357627428,20.0,15.988,15.973,46.97]
[1673357628596,20.0,15.988,15.976,17.0]
[1673357633739,20.0,15.988,15.972,46.97]
[1673357633957,17.0,15.987,15.972,46.97]
[1673357634276,20.0,15.988,15.972,46.97]
[1673357634497,17.0,15.987,15.972,46.97]
[1673357634889,20.0,15.986,15.972,46.97]
[1673357635949,17.0,15.985,15.97,161.5179]
[1673357636573,63.93,15.985,15.97,161.5179]
[1673357636784,108.4466,15.984,15.97,161.5179]
[1673357636997,20.0,15.979,15.969,46.98]
[1673357637208,20.0,15.979,15.964,47.0]
[1673357637422,20.0,15.979,15.966,46.99]
[1673357637633,26.74,15.98,15.964,47.0]
[1673357637844,20.0,15.979,15.965,25.6687597]
[1673357638265,20.0,15.979,15.966,17.0]
[1673357641533,20.0,15.979,15.965,25.6687597]
[1673357642371,17.0,15.978,15.965,5.6687597]
[1673357642560,46.96,15.977,15.965,5.6687597]
[1673357642783,125.4455,15.976,15.965,5.6687597]
[1673357643108,20.0,15.974,15.965,5.6687597]
[1673357644784,26.74,15.97,15.965,5.6687597]
[1673357644978,20.0,15.968,15.965,5.6687597]
[1673357646251,20.0,15.968,15.965,3.1687597]
[1673357646465,130.5198,15.968,15.965,3.1687597]
[1673357648999,37.0,15.967,15.953,20.0]
[1673357649402,37.0,15.967,15.952,199.5012]
[1673357649403,83.99,15.967,15.952,199.5012]
[1673357650050,83.99,15.967,15.948,47.04]
[1673357650259,83.99,15.967,15.949,20.0]
[1673357650260,18.55825296,15.966,15.949,20.0]
[1673357650569,18.55825296,15.966,15.948,47.04]
[1673357650570,26.74,15.96,15.948,47.04]
[1673357650790,20.0,15.959,15.947,111.9068]
[1673357650987,20.0,15.958,15.947,111.9068]
[1673357654347,17.0,15.957,15.942,47.06]
[1673357654559,20.0,15.958,15.944,83.681]
[1673357655825,20.0,15.958,15.945,20.0]
[1673357656040,20.0,15.958,15.944,83.681]
[1673357656855,20.0,15.958,15.945,17.0]
[1673357658566,20.0,15.958,15.942,162.8947]
[1673357658789,26.81,15.95,15.942,162.8947]
[1673357659106,20.0,15.956,15.944,20.0]
[1673357659302,20.0,15.958,15.945,47.05]
[1673357659517,149.7073,15.959,15.946,20.0]
[1673357659518,129.7073,15.959,15.946,20.0]
[1673357659935,129.7073,15.959,15.947,47.05]
[1673357660141,20.0,15.959,15.947,47.05]
[1673357660356,382.12518537,15.967,15.948,39.87621588]
[1673357660560,335.13518537,15.967,15.949,47.04]
[1673357660775,20.0,15.966,15.951,20.0]
[1673357661004,20.0,15.966,15.952,47.99]
[1673357661202,20.0,15.966,15.953,0.96]
[1673357661414,20.0,15.966,15.954,47.02]
[1673357661623,110.5198,15.968,15.954,47.02]
[1673357661835,20.0,15.967,15.955,20.0]
[1673357662151,110.5198,15.968,15.956,47.02]
[1673357662572,110.5198,15.968,15.953,67.03]
[1673357662768,110.5198,15.968,15.954,20.0]
[1673357662973,110.5198,15.968,15.955,47.02]
[1673357663819,37.0,15.967,15.955,47.02]
[1673357664024,37.0,15.967,15.954,47.02]
[1673357664252,37.0,15.967,15.953,47.03]
[1673357664691,37.0,15.967,15.952,235.042]
[1673357664873,37.0,15.967,15.952,119.8141]
[1673357665227,37.0,15.967,15.949,47.04]
[1673357665416,37.0,15.967,15.945,47.05]
[1673357665417,26.81,15.96,15.945,47.05]
[1673357665612,40.0,15.959,15.945,47.05]
[1673357665818,20.0,15.957,15.943,119.2009]
[1673357666028,17.0,15.956,15.942,47.06]
[1673357666252,64.02,15.956,15.942,47.06]
[1673357666467,17.0,15.956,15.941,5.6687597]
[1673357666779,20.0,15.955,15.941,5.6687597]
[1673357666970,17.0,15.954,15.941,5.6687597]
[1673357667620,47.02,15.956,15.941,5.6687597]
[1673357667934,47.02,15.956,15.942,17.0]
[1673357668459,47.02,15.956,15.943,20.0]
[1673357668674,20.0,15.957,15.943,20.0]
[1673357669077,47.01,15.958,15.944,17.95621588]
[1673357669292,140.6455,15.96,15.944,17.95621588]
[1673357669724,140.6455,15.96,15.945,47.05]
[1673357670235,140.6455,15.96,15.944,65.00621588]
[1673357670562,40.0,15.959,15.944,65.00621588]
[1673357670871,20.0,15.959,15.946,20.0]
[1673357671090,20.0,15.959,15.948,20.0]
[1673357671501,113.7755,15.96,15.948,20.0]
[1673357671711,118.544,15.964,15.949,102.95243176]
[1673357671927,46.99,15.967,15.949,84.99621588]
[1673357672135,276.0438,15.968,15.95,17.95621588]
[1673357672352,20.0,15.967,15.951,67.03]
[1673357672550,20.0,15.967,15.952,119.3069]
[1673357672764,20.0,15.967,15.953,20.0]
[1673357672980,20.0,15.967,15.952,119.3069]
[1673357673311,20.0,15.967,15.953,20.0]
[1673357673625,276.0438,15.968,15.953,67.03]
[1673357673830,229.0638,15.968,15.953,67.03]